[Event "FIDE WCCC U10 2018"]
[Site "Santiago de Compostela"]
[Date "2018.11.08"]
[Round "4"]
[White "Kadam Om Manish"]
[Black "Tabuenca Mendataurigoitia, Dani"]
[Result "1-0"]
[ECO "C03"]
[WhiteElo "2025"]
[BlackElo "1648"]
[Annotator "NA RC"]
[PlyCount "85"]
[EventDate "2018.11.04"]
[EventType "swiss"]
[EventCountry "ESP"]
[SourceTitle "playchess.com"]
[Source "ChessBase"]
[SourceQuality "1"]
[TimeControl "40/5400+30:1800+30"]

{[%evp 9,83,-17,-10,32767,0,-40,66,32767,86,88,181,179,32767,181,153,172,173,32767,331,337,364,367,364,375,439,32767,405,328,338,348,363,32767,32767,373,358,32767,32767,391,32767,32767,372,32767,32767,32767,432,32767,456,32767,32767,487,32767,556,554,620,659,765,32767,32767,728,809,753,856,857,884,860,1525,1775,620,32767,32767,32767,32767,32767,29994,29998,29999]} 1. e4 {[%emt 0:00:00]} e6 {[%emt 0:00:00]} 2. d4 {[%emt 0:00:00]} d5 {[%emt 0:00:14]} 3. Nd2 {[%emt 0:00:00]} Nc6 {[%emt 0:00:30]} 4. c3 {[%emt 0:04:25]} e5 {[%emt 0:01:30]} 5. Ne2 {[%emt 0:24:39] C04: French Tarrasch: 3...Nc6} (5. dxe5 dxe4 6. Qe2 Bf5 7. Nxe4 Qd5 8. Ng3 Bg6 9. Nh3 O-O-O 10. Nf4 Qxe5 11. Qxe5 Nxe5 12. Be2 Nf6 13. O-O Bc5 14. Nxg6 hxg6 {0-1 (101) Karjakin,S (2775)-Grischuk,A (2764) Moscow 2012}) 5... Nf6 {[%emt 0:07:18]} 6. exd5 {[%emt 0:01:44]} Nxd5 {[%emt 0:00:31]} 7. Nb3 $146 {[%emt 0:01:50]} ({Predecessor:} 7. c4 Ndb4 8. Ne4 Bf5 9. N2g3 Bxe4 10. Nxe4 Qxd4 11. Ng3 Qxd1+ 12. Kxd1 O-O-O+ {0-1 (20) Crismann,A-Gheorghiu,C (1897) Kemer 2009}) 7... Bf5 {[%emt 0:01:45]} (7... Qe7 $11) 8. Ng3 {[%emt 0:02:14]} Bg6 {[%emt 0:00:51]} 9. dxe5 {[%emt 0:02:23]} Nxe5 {[%emt 0:01:26] [#]} (9... Qd7 $16 {kämpft weiter.}) 10. f4 $1 {[%emt 0:02:20]} Nc6 {[%emt 0:03:53]} 11. f5 {[%emt 0:08:08]} Bd6 {[%emt 0:01:38]} 12. fxg6 {[%emt 0:02:56]} hxg6 {[%emt 0:00:09]} 13. Qe2+ {[%emt 0:06:08]} Nce7 $2 {[%emt 0:04:14]} (13... Kf8 $16 {keeps fighting.} 14. Qf2 (14. Ne4 Qh4+ 15. g3 Bxg3+ 16. Kd1 Re8 $11) 14... Qh4) 14. Ne4 {[%emt 0:00:45]} Be5 {[%emt 0:03:10]} 15. Bd2 {[%emt 0:02:25]} c6 {[%emt 0:04:25]} 16. O-O-O {[%emt 0:00:48]} b5 {[%emt 0:01:57]} 17. g3 {[%emt 0:16:14]} a5 {[%emt 0:02:03]} 18. Nec5 {[%emt 0:01:38]} Qc7 {[%emt 0:00:50]} 19. Bg2 {[%emt 0:10:42]} O-O {[%emt 0:01:18]} 20. Rhe1 {[%emt 0:03:19]} Bd6 {[%emt 0:01:03]} 21. Ne4 {[%emt 0:01:34]} a4 {[%emt 0:01:13]} 22. Nd4 {[%emt 0:00:45]} a3 {[%emt 0:00:43]} 23. b3 {[%emt 0:00:28]} Be5 {[%emt 0:00:45]} 24. Nc5 {[%emt 0:01:02]} Bxd4 {[%emt 0:00:33]} 25. cxd4 {[%emt 0:00:01]} Nf5 {[%emt 0:00:40]} 26. Qe5 {[%emt 0:00:21]} Qxe5 {[%emt 0:00:55]} 27. dxe5 Nd4 {[%emt 0:01:39]} 28. Bxd5 {[%emt 0:01:16]} cxd5 {[%emt 0:00:12]} 29. Bc3 {[%emt 0:00:17]} Nf5 {[%emt 0:00:36]} 30. Rxd5 {[%emt 0:00:29]} Rac8 {[%emt 0:00:34]} 31. b4 {[%emt 0:00:01]} Ne7 {[%emt 0:00:58]} 32. Rd7 {[%emt 0:00:31]} Nc6 {[%emt 0:00:34]} 33. e6 {[%emt 0:00:01]} f6 {[%emt 0:00:59]} 34. Kc2 {[%emt 0:02:48]} Rfe8 {[%emt 0:01:01]} 35. Kb3 {[%emt 0:00:06]} Kf8 {[%emt 0:00:53]} 36. g4 {[%emt 0:01:11]} g5 {[%emt 0:00:24]} 37. h4 {[%emt 0:02:02]} Nb8 {[%emt 0:01:20]} 38. Rf7+ {[%emt 0:00:06]} Kg8 {[%emt 0:00:08]} 39. hxg5 {[%emt 0:00:05]} Nc6 {[%emt 0:01:17]} 40. gxf6 {[%emt 0:00:00]} gxf6 {[%emt 0:00:00]} 41. Bxf6 {[%emt 0:02:21]} Nd8 {[%emt 0:01:14]} 42. Rg7+ {[%emt 0:00:05]} Kh8 {[%emt 0:00:14]} 43. Rh1# {[%emt 0:00:07]} 1-0

[Event "FIDE WCCC U10 2018"]
[Site "Santiago de Compostela"]
[Date "2018.11.08"]
[Round "4"]
[White "Xue, Haowen"]
[Black "Clarkson, George"]
[Result "1/2-1/2"]
[ECO "E62"]
[WhiteElo "2025"]
[BlackElo "1552"]
[Annotator "NA RC"]
[PlyCount "44"]
[EventDate "2018.11.04"]
[EventType "swiss"]
[EventCountry "ESP"]
[SourceTitle "playchess.com"]
[Source "ChessBase"]
[SourceQuality "1"]
[TimeControl "40/5400+30:1800+30"]

{[%evp 15,44,17,56,41,31,27,36,32,58,31,28,26,46,8,43,32767,38,22,30,-27,-32,-37,-27,-25,-25,-20,-42,32767,0,0,6]} 1. d4 {[%emt 0:00:00]} g6 {[%emt 0:00:00]} 2. g3 {[%emt 0:01:24]} Bg7 {[%emt 0:00:00]} 3. Bg2 {[%emt 0:00:06]} d6 {[%emt 0:00:00]} 4. Nf3 {[%emt 0:01:24]} Nf6 {[%emt 0:00:02]} 5. O-O {[%emt 0:01:23]} O-O {[%emt 0:00:34]} 6. c4 {[%emt 0:00:56]} c6 {[%emt 0:00:09]} 7. Nc3 {[%emt 0:01:21]} Bf5 {[%emt 0:00:16]} 8. Ne1 {[%emt 0:11:50]} Be6 {[%emt 0:00:42]} 9. d5 {[%emt 0:03:01] E62: King's Indian: Fianchetto: 6...c6 and Panno Variation (6...Nc6) without ...a6} cxd5 {[%emt 0:00:05]} 10. cxd5 {[%emt 0:00:12]} Bd7 {[%emt 0:00:07] LiveBook: 62 Games} 11. Nd3 {[%emt 0:18:43]} (11. Be3 a5 12. Bd4 Na6 13. Nd3 b5 14. a3 b4 15. axb4 Nxb4 16. Qd2 Rb8 17. Nxb4 Rxb4 {0-1 (57) Ding,L (2774)-Carlsen,M (2837) Saint Louis 2017}) 11... Qc7 $146 {[%emt 0:01:34]} ({Predecessor:} 11... Na6 12. a4 Qa5 13. Bd2 Rfc8 14. Nb5 Qd8 15. Qb3 Ng4 16. Rfc1 Ne5 17. Rxc8 Bxc8 18. Nxe5 {½-½ (40) Fressinet,L (2667)-Vocaturo,D (2598) Barcelona 2017}) 12. Bd2 {[%emt 0:04:05]} Rc8 {[%emt 0:00:13]} 13. Rc1 {[%emt 0:04:21]} Qd8 {[%emt 0:00:07]} 14. b4 {[%emt 0:05:05]} Ng4 {[%emt 0:12:35]} 15. Qb3 {[%emt 0:06:10]} b5 {[%emt 0:13:46]} 16. Bh3 {[%emt 0:08:08]} Qb6 {[%emt 0:11:11]} 17. Kg2 {[%emt 0:05:56]} ({Better is} 17. a4 $14) 17... Ne5 {[%emt 0:02:03]} 18. Nxe5 {[%emt 0:02:38]} Bxh3+ {[%emt 0:01:56]} 19. Kxh3 {[%emt 0:00:12]} Bxe5 {[%emt 0:00:07]} 20. f4 {[%emt 0:03:15]} Bg7 {[%emt 0:02:20]} 21. a4 {[%emt 0:05:20]} a6 {[%emt 0:00:58]} 22. a5 $1 {[%emt 0:01:00]} Qa7 $11 {[%emt 0:03:48]} 1/2-1/2

[Event "FIDE WCCC U10 2018"]
[Site "Santiago de Compostela"]
[Date "2018.11.08"]
[Round "4"]
[White "Xiao, Tong"]
[Black "Nemsadze, Daviti"]
[Result "1-0"]
[ECO "B34"]
[WhiteElo "2022"]
[BlackElo "1762"]
[Annotator "NA RC"]
[PlyCount "83"]
[EventDate "2018.11.04"]
[EventType "swiss"]
[EventCountry "ESP"]
[SourceTitle "playchess.com"]
[Source "ChessBase"]
[SourceQuality "1"]
[TimeControl "40/5400+30:1800+30"]

{[%evp 8,83,30,12,29,32,32767,59,43,32767,37,74,85,22,24,14,207,206,32767,222,207,73,81,49,57,32767,67,0,47,0,15,0,3,0,157,154,175,158,207,199,243,256,32767,350,589,571,595,586,743,822,791,824,834,726,740,725,870,983,957,1019,1635,4975,1800,1928,29978,467,29981,29985,29983,29986,29979,1687,29985,32767,29997,29998,29998,29999]} 1. e4 c5 2. Nf3 Nc6 3. d4 cxd4 4. Nxd4 Nf6 5. Nc3 e5 6. Ndb5 Bb4 7. a3 {B33: Sicilian: Pelikan and Sveshnikov Variations} Bxc3+ {LiveBook: 6 Games} 8. Nxc3 d6 9. Bg5 Be6 10. Nb5 O-O 11. Qxd6 Nxe4 $2 $146 ({Predecessor:} 11... Qb6 $1 $14 12. Qc7 (12. Be3 Qa5+ 13. Qd2 Qxd2+ 14. Bxd2 Nxe4 {1-0 (49) Wilczek,T (2366)-Bortkun,E (2212) ICCF email 2006}) 12... Nxe4) 12. Qxd8 Nxd8 13. Be7 Re8 {[#]} 14. Nc7 (14. Bb4 $1 $18 {and White stays clearly on top.}) 14... Rxe7 15. Nxa8 Nc6 16. f3 Nd4 17. Bd3 ({Günstiger ist} 17. Rc1 $14 Nd6 18. c3) 17... Nc5 18. O-O-O Nxd3+ 19. Rxd3 Bf5 20. Rd2 Re8 $2 ({Lieber} 20... f6 $11) 21. Nc7 Rc8 22. Nd5 Kf8 23. Nc3 Ke7 24. Re1 Kf6 {[#]} 25. f4 $1 Rc5 $2 (25... Nc6 {is a better defense.} 26. fxe5+ Kg6 27. Rd6+ Be6) 26. fxe5+ Rxe5 27. Rf1 ({Lieber nicht} 27. Rxd4 Rxe1+ 28. Rd1 Rxd1+ 29. Nxd1 g5 $11) 27... Ne6 28. g4 g6 29. gxf5 gxf5 30. Nd5+ Kg5 31. Rg2+ Kh6 32. Nf6 Ng5 33. h4 Ne6 34. h5 Ng5 35. Rfg1 Nh3 36. Ng8+ (36. Rh1 $142 Ng5 37. Ng8+ Kg7 38. Rxg5+ Kf8 39. Nf6) 36... Kxh5 37. Nf6+ Kh6 38. Rh1 Re3 39. Kd2 Rf3 40. Ke2 Re3+ 41. Kxe3 f4+ 42. Ke4 1-0

[Event "FIDE WCCC U10 2018"]
[Site "Santiago de Compostela"]
[Date "2018.11.08"]
[Round "4"]
[White "Pingin, Artem"]
[Black "Deuer, Marius"]
[Result "1/2-1/2"]
[ECO "C95"]
[WhiteElo "1981"]
[BlackElo "1695"]
[Annotator "NA RC"]
[PlyCount "199"]
[EventDate "2018.11.04"]
[EventType "swiss"]
[EventCountry "ESP"]
[SourceTitle "playchess.com"]
[Source "ChessBase"]
[SourceQuality "1"]
[TimeControl "40/5400+30:1800+30"]

{[%evp 16,195,26,36,32767,34,43,38,36,25,32767,23,25,14,20,5,10,10,32767,0,10,26,28,20,40,0,32767,7,2,32767,32767,-39,32767,32767,32767,-114,-46,-62,-56,-43,-41,-61,25,0,6,0,32767,28,116,32767,32767,32767,203,53,66,32767,32767,32767,32767,32767,32767,32767,32767,32767,239,340,229,265,186,249,256,0,0,32767,32767,0,0,32767,32767,32767,32767,32767,48,39,32767,33,107,64,32767,89,79,69,80,84,117,117,145,102,99,96,125,102,118,113,141,109,144,147,138,130,144,116,149,32767,126,0,133,139,143,152,156,162,159,170,223,211,202,215,195,153,221,137,32767,0,233,134,159,118,32767,70,70,70,52,8,8,0,32767,32767,32767,32767,8,8,8,32767,8,8,8,8,32767,0,8,8,8,32767,8,8,8,7,32767,7,0,0,7,0,0,8,7,0,8,0,0,0]} 1. e4 {[%emt 0:00:00]} e5 {[%emt 0:00:00]} 2. Nf3 {[%emt 0:00:30]} Nc6 {[%emt 0:00:00]} 3. Bb5 {[%emt 0:00:31]} a6 {[%emt 0:00:00]} 4. Ba4 {[%emt 0:00:05]} Nf6 {[%emt 0:00:00]} 5. O-O {[%emt 0:00:10]} Be7 {[%emt 0:00:06]} 6. Re1 {[%emt 0:02:40]} b5 {[%emt 0:00:07]} 7. Bb3 {[%emt 0:00:08]} d6 {[%emt 0:00:02]} 8. c3 {[%emt 0:00:42]} O-O {[%emt 0:00:21]} 9. h3 {[%emt 0:02:39]} Nb8 {[%emt 0:00:12]} 10. d4 {[%emt 0:02:07]} Nbd7 {[%emt 0:00:07]} 11. Nbd2 {[%emt 0:00:31]} Bb7 {[%emt 0:00:29]} 12. Bc2 {[%emt 0:01:04]} c5 {[%emt 0:01:15]} 13. d5 {[%emt 0:05:37]} c4 {[%emt 0:00:09] C95: Closed Ruy Lopez: Breyer Variation with 10 d4} 14. Nf1 {[%emt 0:02:15]} Qc7 {[%emt 0:00:36]} 15. Ng3 {[%emt 0:03:57] LiveBook: 24 Games} g6 (15... Rfb8 16. Nf5 Bf8 17. Nh2 Bc8 18. Qf3 b4 19. Bg5 b3 20. Bd1 Ne8 21. a3 {1-0 (95) Kravtsiv,M (2641)-Jones,G (2676) Sharjah 2017}) 16. Bg5 {[%emt 0:03:45]} Rfb8 $146 {[%emt 0:09:51]} ({Predecessor:} 16... a5 17. Qd2 Rfb8 18. Nh2 Qd8 19. f4 exf4 20. Bxf4 Ne5 21. Rf1 {1-0 (47) Perske,T (2431)-Plenca,J (2446) Rymanow Zdroj 2017}) 17. Qd2 {[%emt 0:02:52]} Bf8 {[%emt 0:09:14]} 18. Nh2 {[%emt 0:14:49]} Bg7 {[%emt 0:12:48]} 19. Rf1 {[%emt 0:08:28]} a5 {[%emt 0:10:25]} 20. h4 {[%emt 0:09:49]} b4 {[%emt 0:10:29]} 21. h5 {[%emt 0:02:22]} Nxh5 {[%emt 0:08:29]} 22. Nxh5 {[%emt 0:00:07]} gxh5 {[%emt 0:00:01]} 23. Bd1 {[%emt 0:00:53]} Nc5 {[%emt 0:03:42]} 24. Bf3 {[%emt 0:06:51]} Bc8 {[%emt 0:06:31]} 25. Be3 {[%emt 0:07:32]} bxc3 {[%emt 0:05:17]} 26. bxc3 {[%emt 0:00:13]} Nd3 27. Bxh5 {[%emt 0:00:37]} Rb2 {[%emt 0:06:02]} 28. Qd1 {[%emt 0:00:09]} Rab8 {[%emt 0:00:33]} ({Black should try} 28... f5 $1 $15 29. Bc1 Rb7) 29. Qf3 {[%emt 0:00:56]} R8b7 {[%emt 0:01:51]} 30. Ng4 {[%emt 0:01:24]} Bxg4 {[%emt 0:01:24]} 31. Qxg4 {[%emt 0:00:08]} Nc5 {[%emt 0:01:51]} (31... Qd8 $11 {keeps the balance.}) 32. Bxc5 {[%emt 0:02:31]} Qxc5 {[%emt 0:01:02]} 33. Rae1 {[%emt 0:02:39]} Rb8 $2 {[%emt 0:01:07] [#]} ({Of course not} 33... Rxa2 $6 34. Re3 $16) ({Black should try} 33... Qc7 $1 $14) 34. Re3 {[%emt 0:01:45]} ({White has to play} 34. Bxf7+ $1 $18 {[%mdl 512]} Kh8 (34... Kxf7 35. Qe6+) 35. Be6) 34... Qc8 {[%emt 0:02:34]} 35. Qh4 {[%emt 0:01:32]} Qd8 {[%emt 0:00:20]} 36. Qh3 {[%emt 0:00:46]} Rxa2 {[%emt 0:00:42]} 37. Bxf7+ {[%emt 0:01:40]} Kh8 {[%emt 0:00:06]} 38. Qh5 {[%emt 0:01:25]} Rab2 {[%emt 0:02:05]} 39. Bg6 {[%emt 0:02:57]} h6 {[%emt 0:00:56]} 40. Rg3 {[%emt 0:00:00]} a4 {[%emt 0:00:00]} 41. Bf5 {[%emt 0:02:09]} Qf6 {[%emt 0:02:55]} 42. Rg6 {[%emt 0:00:47]} Qf8 {[%emt 0:00:34]} 43. Re6 $2 {[%emt 0:08:53]} (43. g4 $18) 43... a3 $1 {[%emt 0:20:59]} 44. Qg6 {[%emt 0:01:05]} Qg8 {[%emt 0:00:06]} 45. Rxd6 {[%emt 0:09:45]} Bf8 $1 {[%emt 0:08:17]} 46. Qxg8+ {[%emt 0:04:02]} Kxg8 {[%emt 0:00:06]} 47. Ra6 {[%emt 0:00:03]} a2 {[%emt 0:00:09]} 48. Be6+ {[%emt 0:00:34]} Kg7 {[%emt 0:03:38]} 49. d6 {[%emt 0:00:07]} Bxd6 {[%emt 0:02:17]} 50. Bxc4 {[%emt 0:00:48]} Rc8 {[%emt 0:01:53]} (50... Bc5 $14) 51. Be6 {[%emt 0:03:06]} Rd8 {[%emt 0:00:17]} 52. Rxa2 {[%emt 0:00:20]} Rxa2 {[%emt 0:00:34]} 53. Bxa2 {[%emt 0:00:04]} Rc8 {[%emt 0:00:05]} 54. Rd1 {[%emt 0:01:58]} Be7 {[%emt 0:02:22]} 55. Rd3 {[%emt 0:00:30]} Bc5 {[%emt 0:00:32]} 56. Rg3+ {[%emt 0:00:46]} Kh7 {[%emt 0:00:55]} 57. Be6 {[%emt 0:00:30]} Rd8 {[%emt 0:00:01]} 58. Rf3 {[%emt 0:01:34]} Rd1+ {[%emt 0:01:19]} 59. Kh2 {[%emt 0:00:06]} Rd2 {[%emt 0:00:24]} 60. Kg3 {[%emt 0:00:26]} Kg6 {[%emt 0:00:18]} 61. Bf7+ {[%emt 0:00:28]} Kg7 $1 $11 {[%emt 0:00:12]} 62. Bd5 {[%emt 0:00:21]} Kg6 {[%emt 0:00:12]} 63. Bc6 {[%emt 0:00:54]} Rc2 {[%emt 0:00:33]} 64. Be8+ {[%emt 0:01:43]} Kg7 {[%emt 0:00:08]} 65. Bf7 {[%emt 0:02:07]} (65. Rf7+ $16 Kg8 66. Rf3) 65... Re2 {[%emt 0:00:54]} 66. Bd5 {[%emt 0:00:03]} Rc2 {[%emt 0:00:21]} 67. c4 {[%emt 0:00:52]} Kg6 {[%emt 0:01:26]} 68. Rf5 {[%emt 0:00:34]} Rc3+ {[%emt 0:00:16]} 69. f3 {[%emt 0:00:44]} Bd4 {[%emt 0:00:03]} 70. Kh3 {[%emt 0:02:14]} Kg7 {[%emt 0:01:06]} 71. Rf7+ {[%emt 0:00:08]} Kg6 {[%emt 0:00:06]} 72. Rb7 {[%emt 0:00:33]} Rd3 $1 {[%emt 0:00:56]} (72... h5 $16 {was worth a try.} 73. Re7 Rc1) 73. Bf7+ {[%emt 0:00:49]} Kf6 {[%emt 0:00:21]} 74. Bd5 $2 {[%emt 0:01:21]} (74. Bh5 $16) 74... Kg6 {[%emt 0:00:22]} 75. Rb1 {[%emt 0:00:07]} Rc3 {[%emt 0:00:10]} 76. Rf1 {[%emt 0:00:10]} Kg5 {[%emt 0:00:33]} 77. g3 {[%emt 0:00:13]} Rd3 {[%emt 0:00:38]} 78. Be6 {[%emt 0:02:40]} Rc3 {[%emt 0:00:24]} 79. Kg2 {[%emt 0:00:15]} ({Better is} 79. Bf7 $16) 79... Rc2+ {[%emt 0:00:16]} 80. Kh3 {[%emt 0:00:42]} Rc3 {[%emt 0:00:09]} 81. f4+ {[%emt 0:00:47]} exf4 {[%emt 0:00:15]} 82. Rxf4 {[%emt 0:00:03]} Rxg3+ $1 {[%emt 0:00:09]} 83. Kxg3 {[%emt 0:00:03]} Be5 {[%emt 0:00:07]} 84. c5 {[%emt 0:00:10]} Bxf4+ {[%emt 0:00:07]} 85. Kf3 {[%emt 0:00:02]} Bb8 {[%emt 0:00:51]} 86. Bd7 {[%emt 0:00:34]} Kf6 {[%emt 0:00:28]} 87. Kg4 {[%emt 0:00:12]} Ke5 {[%emt 0:00:18]} 88. Bf5 {[%emt 0:00:06]} Kd4 {[%emt 0:00:36]} 89. c6 {[%emt 0:00:06]} Kc5 {[%emt 0:00:04]} 90. Bd7 {[%emt 0:00:07]} Kd4 {[%emt 0:00:10]} 91. Kf3 {[%emt 0:00:22]} h5 {[%emt 0:00:59]} 92. Be6 {[%emt 0:00:08]} Kc5 {[%emt 0:00:23]} 93. Bd5 {[%emt 0:00:14]} Kd4 {[%emt 0:00:07]} 94. Kg2 {[%emt 0:00:06]} h4 {[%emt 0:00:17]} 95. Kh3 {[%emt 0:00:03]} Bg3 $1 {[%emt 0:00:15]} 96. Kg4 {[%emt 0:00:13]} Kc5 {[%emt 0:00:14]} 97. e5 $1 {[%emt 0:00:47]} Bxe5 {[%emt 0:00:17]} 98. Bh1 $11 {[%emt 0:00:04]} Bg3 {[%emt 0:00:25]} 99. c7 {[%emt 0:00:02]} Bxc7 {[%emt 0:00:06]} 100. Kxh4 1/2-1/2

[Event "FIDE WCCC U10 2018"]
[Site "Santiago de Compostela"]
[Date "2018.11.08"]
[Round "4"]
[White "Vagman, Roy"]
[Black "Nitsche, Nikolai"]
[Result "1-0"]
[ECO "C03"]
[WhiteElo "1970"]
[BlackElo "1645"]
[Annotator "NA RC"]
[PlyCount "61"]
[EventDate "2018.11.04"]
[EventType "swiss"]
[EventCountry "ESP"]
[SourceTitle "playchess.com"]
[Source "ChessBase"]
[SourceQuality "1"]
[TimeControl "40/5400+30:1800+30"]

{[%evp 19,58,67,72,72,78,76,102,66,86,63,83,70,91,70,111,125,117,122,141,140,164,150,191,185,193,192,260,32767,385,409,628,739,32767,906,32767,1015,1247,1110,29997,521,497]} 1. e4 {[%emt 0:00:00]} e6 {[%emt 0:00:00]} 2. d4 {[%emt 0:00:00]} d5 {[%emt 0:00:00]} 3. Nd2 {[%emt 0:00:11]} Be7 {[%emt 0:00:09]} 4. c3 {[%emt 0:00:16]} Nf6 {[%emt 0:00:22]} 5. e5 {[%emt 0:00:32]} Nfd7 {[%emt 0:00:10]} 6. Bd3 {[%emt 0:00:46]} c5 {[%emt 0:00:19]} 7. Ne2 {[%emt 0:01:03]} Nc6 {[%emt 0:01:08]} 8. Nf3 {[%emt 0:00:55]} O-O {[%emt 0:00:23]} 9. O-O {[%emt 0:01:09] C06: French Tarrasch: 3...Nf6 4 e5 Nfd7 5 Bd3 main lines} f6 {[%emt 0:00:47]} (9... Re8 10. Be3 b6 11. Rc1 Bb7 12. Nf4 Rc8 13. h3 Na5 14. Qe2 Nc4 15. Rcd1 Qc7 16. Bc1 Na5 {1-0 (33) Faber,H (2451)-Scherer,A (2457) Remote email 2012}) 10. exf6 $1 {[%emt 0:02:32]} Nxf6 {[%emt 0:00:43]} 11. Re1 {[%emt 0:01:37]} cxd4 {[%emt 0:04:34]} 12. Nexd4 {[%emt 0:02:25]} Nxd4 {[%emt 0:01:08]} 13. cxd4 {[%emt 0:05:19]} Bd7 {[%emt 0:04:44]} 14. Bd2 $146 {[%emt 0:06:19]} ({Predecessor:} 14. Ne5 Qb6 15. Bg5 Bb5 16. Bc2 Rac8 17. Rc1 Rc7 18. a4 Bc4 19. b3 Ba6 20. Bxf6 Rxf6 21. Qh5 Rh6 22. Qf7+ {1-0 (22) Angeleri Gastana,R-Garcia Perez,J Aviles 2008}) 14... Bd6 {[%emt 0:11:42]} 15. Qb3 {[%emt 0:02:38]} b5 {[%emt 0:06:28]} 16. Rac1 {[%emt 0:12:15]} ({Don't play} 16. Bxb5 $6 Rb8 $11) 16... a6 {[%emt 0:01:47]} 17. Bb4 {[%emt 0:03:23]} Bxb4 {[%emt 0:04:56]} 18. Qxb4 {[%emt 0:00:03]} a5 {[%emt 0:10:35]} 19. Qd6 {[%emt 0:01:11]} Rb8 {[%emt 0:10:51]} 20. Ne5 {[%emt 0:03:45]} Qb6 {[%emt 0:06:16]} 21. Qxb6 {[%emt 0:01:19]} Rxb6 {[%emt 0:01:31]} 22. Rc7 {[%emt 0:00:32]} Be8 {[%emt 0:01:25]} (22... Rd8 {was called for.} 23. Ra7 Rbb8) 23. Ra7 {[%emt 0:00:43]} a4 {[%emt 0:01:48]} (23... b4 {was called for.} 24. f3 (24. Rxa5 Nd7 $18) 24... Bb5 25. Rxa5 Bxd3) 24. Rc1 {[%emt 0:00:34]} g6 {[%emt 0:03:35]} (24... Kh8 $142 25. Rcc7 Rg8) 25. Rcc7 {[%emt 0:00:23]} b4 {[%emt 0:03:18]} 26. g4 {[%emt 0:00:32]} b3 {[%emt 0:01:04]} 27. a3 {[%emt 0:00:07]} g5 {[%emt 0:00:37]} 28. Bxh7+ {[%emt 0:00:52]} Nxh7 {[%emt 0:00:12]} 29. Rxh7 {[%emt 0:00:08]} (29. Rg7+ $142 Kh8 30. Rxh7+ Kg8 31. Rag7#) 29... Rf4 $18 {[%emt 0:00:16]} 30. Rag7+ {[%emt 0:01:05]} Kf8 {[%emt 0:00:40]} 31. Rc7 1-0